bitfinex/quotes_SOLUSD_20241125
["timestamp","ask_amount","ask_price","bid_price","bid_amount"]
[1732543846591,33.776884,247.75,247.69,11.71930588]
[1732543846886,23.776884,247.75,247.69,11.71930588]
[1732543847091,10.0,247.74,247.67,11.71930588]
[1732543847286,12.4219,247.74,247.63,11.71930588]
[1732543847490,10.0,247.71,247.63,31.71930588]
[1732543848012,10.0,247.73,247.63,31.71930588]
[1732543848013,10.0,247.69,247.63,31.71930588]
[1732543848313,10.0,247.67,247.63,31.71930588]
[1732543848493,10.0,247.72,247.63,31.71930588]
[1732543848814,23.776884,247.71,247.65,11.71930588]
[1732543849017,10.0,247.7,247.64,11.71930588]
[1732543849327,10.0,247.68,247.62,11.71930588]
[1732543849489,10.0,247.69,247.62,11.71930588]
[1732543849690,10.0,247.68,247.62,11.71930588]
[1732543850921,20.0,247.68,247.62,11.71930588]
[1732543851295,10.0,247.66,247.58,11.71930588]
[1732543851805,10.0,247.65,247.58,11.71930588]
[1732543852420,10.0,247.64,247.56,11.71930588]
[1732543853010,10.0,247.64,247.58,11.71930588]
[1732543853218,10.0,247.63,247.58,11.71930588]
[1732543853637,22.4228,247.65,247.58,11.71930588]
[1732543854426,10.0,247.63,247.56,20.0]
[1732543854619,10.0,247.63,247.57,11.71930588]
[1732543856314,2.4226,247.66,247.59,11.71930588]
[1732543856907,10.0,247.65,247.59,11.71930588]
[1732543857214,10.0,247.64,247.59,11.71930588]
[1732543857823,12.4226,247.66,247.59,11.71930588]
[1732543858121,10.0,247.64,247.59,11.71930588]
[1732543858413,12.4226,247.67,247.59,11.71930588]
[1732543858617,10.0,247.67,247.6,11.71930588]
[1732543859116,10.0,247.69,247.62,11.71930588]
[1732543859319,36.199084,247.71,247.64,11.71930588]
[1732543859524,46.199084,247.71,247.64,11.71930588]
[1732543860020,20.0,247.73,247.66,11.71930588]
[1732543860315,6.0534,247.8,247.7,11.71930588]
[1732543860316,10.0,247.76,247.7,11.71930588]
[1732543861019,10.0,247.74,247.7,11.71930588]
[1732543861902,10.0,247.74,247.68,11.71930588]
[1732543862500,10.0,247.74,247.67,11.71930588]
[1732543862501,22.4219,247.74,247.67,11.71930588]
[1732543862723,22.4217,247.76,247.68,11.71930588]
[1732543862924,22.4215,247.78,247.7,11.71930588]
[1732543863103,10.0,247.76,247.71,11.71930588]
[1732543863298,10.0,247.76,247.65,20.0]
[1732543863299,10.0,247.78,247.74,11.71930588]
[1732543863603,20.0,247.8,247.73,11.71930588]
[1732543863932,10.0,247.78,247.73,11.71930588]
[1732543864110,10.0,247.78,247.72,11.71930588]
[1732543864712,10.0,247.78,247.73,11.71930588]
[1732543864928,10.0,247.82,247.75,11.71930588]
[1732543865109,10.0,247.79,247.75,11.71930588]
[1732543865313,10.0,247.79,247.74,11.71930588]
[1732543865824,10.0,247.79,247.75,11.71930588]
[1732543866028,17.4533,247.85,247.78,31.71930588]
[1732543866029,10.0,247.85,247.78,31.71930588]
[1732543866201,10.0,247.89,247.84,11.71930588]
[1732543866524,10.0,247.94,247.86,11.71930588]
[1732543866824,10.0,247.92,247.88,11.71930588]
[1732543867118,10.0,247.94,247.88,11.71930588]
[1732543867318,10.0,247.96,247.9,11.71930588]
[1732543867499,10.0,247.96,247.8,11.71930588]
[1732543867500,10.0,247.98,247.92,11.71930588]
[1732543867700,10.0,247.98,247.94,11.71930588]
[1732543867898,10.0,248.0,247.95,11.71930588]
[1732543868645,10.0,248.05,247.99,11.71930588]
[1732543868832,10.0,248.05,248.0,11.71930588]
[1732543869908,10.0,248.05,248.01,11.71930588]
[1732543870109,10.0,248.03,247.99,11.71930588]
[1732543870327,10.0,248.03,247.97,11.71930588]
[1732543871309,10.0,248.01,247.97,11.71930588]
[1732543871829,10.0,248.03,247.99,11.71930588]
[1732543873533,10.0,248.06,248.02,11.71930588]
[1732543873724,10.0,248.08,248.04,11.71930588]
[1732543874419,10.0,248.08,248.03,18.69249362]
[1732543875427,10.0,248.1,248.05,18.69249362]
[1732543876306,10.0,248.08,248.05,18.69249362]
[1732543877114,10.0,248.06,248.03,18.69249362]
[1732543877314,10.0,248.06,248.01,18.69249362]
[1732543878421,10.0,248.06,247.98,18.69249362]
[1732543879838,10.0,248.06,247.99,4.0324]
[1732543880530,20.0,248.06,247.99,4.0324]
[1732543881335,10.0,248.06,248.0,18.69249362]
[1732543882135,10.0,248.1,248.05,18.69249362]
[1732543882430,10.0,248.1,248.04,18.69249362]
[1732543883414,10.0,248.1,248.06,18.69249362]
[1732543883733,10.0,248.13,248.07,18.69249362]
[1732543883907,10.0,248.11,248.07,18.69249362]
[1732543884113,10.0,248.11,248.06,18.69249362]
[1732543884420,20.0,248.11,248.04,18.69249362]
[1732543885209,10.0,248.15,248.1,18.69249362]
[1732543885409,20.0,248.15,248.12,18.69249362]
[1732543885609,20.0,248.15,248.1,18.69249362]
[1732543886145,10.0,248.11,248.08,18.69249362]
[1732543886331,12.4178,248.15,248.08,18.69249362]
[1732543886332,10.0,248.13,248.08,18.69249362]
[1732543886541,10.0,248.11,248.08,18.69249362]
[1732543887924,10.0,248.17,248.1,18.69249362]
[1732543888133,10.0,248.14,248.1,18.69249362]
[1732543888641,10.0,248.16,248.1,18.69249362]
[1732543888830,2.4177,248.17,248.1,18.69249362]
[1732543888831,10.0,248.14,248.1,18.69249362]
[1732543889241,10.0,248.16,248.1,18.69249362]
[1732543889826,10.0,248.14,248.1,18.69249362]
[1732543890336,20.0,248.14,248.1,18.69249362]
[1732543890835,10.0,248.14,248.1,18.69249362]
[1732543891234,10.0,248.16,248.1,22.72309362]
[1732543891420,20.0,248.19,248.14,18.69249362]
[1732543892440,10.0,248.19,248.18,18.69249362]
[1732543893144,20.0,248.19,248.14,18.69249362]
[1732543893547,10.0,248.19,248.16,18.69249362]
[1732543893925,20.0,248.19,248.16,18.69249362]
[1732543894447,10.0,248.19,248.16,18.69249362]
[1732543894960,20.0,248.19,248.14,18.69249362]
[1732543896439,20.0,248.19,248.15,11.67102747]
[1732543897244,20.0,248.19,248.13,4.03]
[1732543897245,10.0,248.17,248.1,20.0]
[1732543897545,20.0,248.17,248.13,11.67102747]
[1732543899525,10.0,248.17,248.13,11.67102747]
[1732543900144,10.0,248.21,248.15,11.67102747]
[1732543900327,20.0,248.25,248.2,11.67102747]
[1732543900845,10.0,248.25,248.2,11.67102747]
[1732543901255,10.0,248.24,248.2,11.67102747]
[1732543903450,10.0,248.22,248.16,11.67102747]
[1732543904132,10.0,248.22,248.18,11.67102747]
[1732543904332,10.0,248.24,248.2,11.67102747]
[1732543905834,10.0,248.26,248.2,11.67102747]
[1732543906034,10.0,248.26,248.21,4.0288]
[1732543906255,10.0,248.26,248.22,11.67102747]
[1732543907157,20.0,248.24,248.2,11.67102747]
[1732543907447,10.0,248.24,248.2,11.67102747]
[1732543907655,20.0,248.24,248.2,11.67102747]
[1732543908455,10.0,248.24,248.2,11.67102747]
[1732543908756,20.0,248.24,248.2,11.67102747]
[1732543908959,20.0,248.24,248.2,15.69992747]
[1732543909254,20.0,248.24,248.19,11.67102747]
[1732543909549,20.0,248.24,248.18,11.67102747]
[1732543909860,10.0,248.26,248.2,11.67102747]
[1732543910036,10.0,248.24,248.2,11.67102747]
[1732543910235,20.0,248.24,248.2,11.67102747]
[1732543910438,10.0,248.26,248.22,11.67102747]
[1732543910855,20.0,248.28,248.22,11.67102747]
[1732543911038,10.0,248.3,248.26,11.67102747]
[1732543913243,10.0,248.31,248.26,11.67102747]
[1732543914061,10.0,248.33,248.28,11.67102747]
[1732543914238,10.0,248.33,248.3,11.67102747]
[1732543914559,10.0,248.36,248.32,11.67102747]
[1732543914765,10.0,248.38,248.32,11.67102747]
[1732543915135,10.0,248.36,248.32,11.67102747]
[1732543915439,10.0,248.36,248.32,15.69802747]
[1732543916269,10.0,248.35,248.32,15.69802747]
[1732543917845,10.0,248.35,248.34,11.67102747]
[1732543919245,10.0,248.38,248.34,11.67102747]
[1732543919641,10.0,248.35,248.34,11.67102747]
[1732543920045,20.0,248.42,248.34,15.69772747]
[1732543920241,20.0,248.42,248.38,11.67102747]
[1732543920442,20.0,248.42,248.39,11.67102747]
[1732543921134,20.0,248.42,248.38,11.67102747]
[1732543921836,10.0,248.4,248.34,11.67102747]
[1732543922042,10.0,248.38,248.33,30.19882747]
[1732543922263,10.0,248.38,248.32,15.69792747]
[1732543922763,2.4152,248.42,248.27,17.4568]
[1732543922764,10.0,248.35,248.3,11.67102747]
[1732543923058,10.0,248.35,248.28,4.0277]
[1732543923059,10.0,248.33,248.28,11.67102747]
[1732543923242,10.0,248.33,248.28,15.69862747]
[1732543923446,10.0,248.37,248.32,11.67102747]
[1732543923657,10.0,248.38,248.33,11.67102747]
[1732543923845,20.0,248.36,248.33,11.67102747]
[1732543924044,10.0,248.38,248.33,11.67102747]
[1732543924550,10.0,248.4,248.34,11.67102747]
[1732543924760,10.0,248.38,248.34,11.67102747]
[1732543926160,20.0,248.38,248.34,11.67102747]
[1732543926349,20.0,248.38,248.32,11.67102747]
[1732543926350,10.0,248.36,248.32,11.67102747]
[1732543926740,20.0,248.38,248.32,11.67102747]
[1732543927164,10.0,248.41,248.36,11.67102747]
[1732543928139,10.0,248.4,248.36,11.67102747]
[1732543928969,10.0,248.4,248.36,15.69732747]
[1732543929667,10.0,248.4,248.36,11.67102747]
[1732543930448,10.0,248.4,248.35,11.67102747]
[1732543931470,10.0,248.41,248.36,11.67102747]
[1732543931676,20.0,248.41,248.36,11.67102747]
[1732543932172,20.0,248.41,248.35,11.67102747]
[1732543933070,10.0,248.4,248.35,15.69752747]
[1732543933462,10.0,248.41,248.36,11.67102747]
[1732543933859,10.0,248.4,248.36,11.67102747]
[1732543934058,10.0,248.4,248.35,11.67102747]
[1732543934271,10.0,248.4,248.35,7.45745115]
[1732543934472,10.0,248.41,248.35,7.45745115]
[1732543934657,10.0,248.4,248.35,7.45745115]
[1732543934977,10.0,248.4,248.32,20.0]
[1732543935174,10.0,248.39,248.32,20.0]
[1732543935473,10.0,248.37,248.32,20.0]
[1732543935690,10.0,248.36,248.31,7.45745115]
[1732543936053,10.0,248.37,248.31,11.48445115]
[1732543936259,10.0,248.37,248.33,7.45745115]
[1732543937274,20.0,248.37,248.33,7.45745115]
[1732543937780,10.0,248.37,248.33,11.48425115]
[1732543938170,10.0,248.39,248.35,7.45745115]
[1732543938551,20.0,248.39,248.35,7.45745115]
[1732543939278,10.0,248.39,248.35,11.48395115]
[1732543939480,10.0,248.38,248.35,11.48395115]
[1732543940056,10.0,248.39,248.35,11.48395115]
[1732543940954,20.0,248.39,248.35,4.0265]
[1732543941159,20.0,248.39,248.36,7.45745115]
[1732543941359,10.0,248.39,248.36,7.45745115]
[1732543941559,20.0,248.39,248.36,7.45745115]
[1732543942278,10.0,248.42,248.38,7.45745115]
[1732543942577,20.0,248.42,248.38,7.45745115]
[1732543943560,10.0,248.42,248.4,7.45745115]
[1732543943982,20.0,248.44,248.4,7.45745115]
[1732543944974,10.0,248.53,248.46,20.0]
[1732543945160,10.0,248.55,248.52,7.45745115]
[1732543945368,10.0,248.55,248.42,0.60362921]
[1732543945580,10.0,248.55,248.53,7.45745115]
[1732543945787,10.0,248.57,248.53,7.45745115]
[1732543945985,20.0,248.57,248.53,7.45745115]
[1732543946282,10.0,248.55,248.51,4.0239]
[1732543946462,10.0,248.58,248.51,4.0239]
[1732543946666,10.0,248.61,248.57,11.63231781]
[1732543946868,10.0,248.61,248.59,11.63231781]
[1732543948062,20.0,248.61,248.57,11.63231781]
[1732543948262,20.0,248.61,248.59,11.63231781]
[1732543949188,10.0,248.49,248.44,11.63231781]
[1732543949364,10.0,248.54,248.48,11.63231781]
[1732543949563,10.0,248.55,248.51,11.63231781]
[1732543949880,10.0,248.55,248.49,11.63231781]
[1732543950382,10.0,248.53,248.49,11.63231781]
[1732543950563,10.0,248.55,248.49,11.63231781]
[1732543950770,10.0,248.53,248.49,11.63231781]
[1732543951366,10.0,248.53,248.49,15.65641781]
[1732543951575,20.0,248.55,248.51,11.63231781]
[1732543951754,20.0,248.55,248.49,11.63231781]
[1732543951956,26.3897,248.6,248.43,11.63231781]
[1732543951957,10.0,248.5,248.43,11.63231781]
[1732543952176,20.0,248.47,248.41,11.63231781]
[1732543952375,2.8163,248.55,248.45,11.63231781]
[1732543952376,10.0,248.55,248.45,11.63231781]
[1732543952581,10.0,248.53,248.5,11.63231781]
[1732543958986,10.0,248.53,248.52,11.63231781]
[1732543959566,10.0,248.53,248.5,11.63231781]
[1732543959772,20.0,248.53,248.46,11.63231781]
[1732543959988,10.0,248.47,248.42,11.63231781]
[1732543960595,10.0,248.46,248.42,11.63231781]
[1732543960770,10.0,248.47,248.42,15.65761781]
[1732543960965,10.0,248.49,248.44,11.63231781]
[1732543961275,10.0,248.48,248.44,11.63231781]
[1732543961490,10.0,248.51,248.46,11.63231781]
[1732543962075,9.5,248.51,248.46,11.63231781]
[1732543962399,9.5,248.53,248.5,11.63231781]
[1732543962689,10.0,248.54,248.5,11.63231781]
[1732543962895,9.5,248.53,248.5,11.63231781]
[1732543963784,9.5,248.55,248.5,11.63231781]
[1732543964584,9.5,248.53,248.5,11.63231781]
[1732543965096,19.5,248.54,248.5,11.63231781]
[1732543965389,9.5,248.54,248.5,11.63231781]
[1732543965596,9.5,248.54,248.5,15.65631781]
[1732543965976,9.5,248.56,248.5,15.65631781]
[1732543966371,10.0,248.57,248.52,11.63231781]
[1732543966797,9.5,248.55,248.52,11.63231781]
[1732543966988,9.5,248.55,248.5,11.63231781]
[1732543967185,9.5,248.55,248.51,11.63231781]
[1732543967805,10.0,248.54,248.51,11.63231781]
[1732543968207,9.5,248.6,248.53,31.63231781]
[1732543968417,10.0,248.59,248.58,7.44333279]
[1732543968617,9.5,248.6,248.58,7.44333279]
[1732543970112,9.5,248.6,248.57,7.44333279]
[1732543970320,10.0,248.59,248.57,11.63082656]
[1732543970527,10.0,248.59,248.55,11.63082656]
[1732543971021,9.5,248.6,248.56,11.63082656]
[1732543972928,10.0,248.58,248.56,11.63082656]
[1732543973225,19.5,248.6,248.56,11.63082656]
[1732543973749,10.0,248.58,248.56,11.63082656]
[1732543973933,19.5,248.6,248.56,11.63082656]
[1732543974220,10.0,248.58,248.56,11.63082656]
[1732543974592,19.5,248.6,248.56,11.63082656]
[1732543974808,10.0,248.6,248.58,11.63082656]
[1732543975009,10.0,248.6,248.59,11.63082656]
[1732543975626,19.5,248.64,248.59,11.63082656]
[1732543975794,10.0,248.61,248.55,20.0]
[1732543976118,10.0,248.61,248.56,4.0231]
[1732543977010,10.0,248.61,248.6,11.63082656]
[1732543977731,10.0,248.61,248.58,15.65362656]
[1732543979302,19.5,248.64,248.58,15.65362656]
[1732543979500,10.0,248.61,248.58,15.65362656]
[1732543979829,10.0,248.61,248.55,20.0]
[1732543979830,9.5,248.6,248.55,20.0]
[1732543980023,9.5,248.56,248.52,11.63082656]
[1732543980405,19.5,248.56,248.5,11.63082656]
[1732543981009,19.5,248.58,248.54,11.63082656]
[1732543981213,10.0,248.56,248.54,11.63082656]
[1732543981411,9.5,248.58,248.54,11.63082656]
[1732543981711,10.0,248.55,248.54,11.63082656]
[1732543981933,9.5,248.58,248.54,11.63082656]
[1732543982223,10.0,248.55,248.54,11.63082656]
[1732543983176,9.5,248.58,248.54,11.63082656]
[1732543983379,10.0,248.55,248.54,11.63082656]
[1732543983580,9.5,248.58,248.54,11.63082656]
[1732543983800,10.0,248.56,248.54,11.63082656]
[1732543984007,9.5,248.58,248.54,15.65422656]
[1732543984700,10.0,248.59,248.56,11.63082656]
[1732543985989,10.0,248.59,248.56,15.65382656]
[1732543986806,9.5,248.58,248.54,11.63082656]
[1732543986986,10.0,248.57,248.54,11.63082656]
[1732543987380,9.5,248.56,248.54,11.63082656]
[1732543987989,10.0,248.57,248.54,11.63082656]
[1732543988596,9.5,248.58,248.54,11.63082656]
[1732543988809,10.0,248.57,248.54,11.63082656]
[1732543989000,9.5,248.58,248.54,11.63082656]
[1732543989314,8.46465742,248.57,248.54,11.63082656]
[1732543990297,8.46465742,248.59,248.56,7.44454636]
[1732543990485,8.46465742,248.61,248.58,7.44454636]
[1732543990810,9.5,248.63,248.6,7.44454636]
[1732543990995,8.46465742,248.61,248.6,7.44454636]
[1732543991407,8.46465742,248.64,248.6,7.44454636]
[1732543991598,8.46465742,248.64,248.63,7.44454636]
[1732543991784,8.46465742,248.64,248.57,26.2542]
[1732543991785,8.46465742,248.64,248.6,20.0]
[1732543991981,17.96465742,248.64,248.6,20.0]
[1732543992285,9.5,248.64,248.62,7.44454636]
[1732543992490,17.96465742,248.64,248.62,7.44454636]
[1732543992801,17.96465742,248.64,248.6,20.0]
[1732543993102,17.96465742,248.64,248.59,11.46704636]
[1732543993695,17.96465742,248.64,248.59,7.44454636]
[1732543993898,8.46465742,248.6,248.59,7.44454636]
[1732543994113,9.5,248.62,248.59,7.44454636]
[1732543994306,8.46465742,248.6,248.59,7.44454636]
[1732543994490,8.46465742,248.61,248.59,7.44454636]
[1732543995111,9.5,248.58,248.55,7.44454636]
[1732543996182,8.46465742,248.59,248.57,7.44454636]
[1732543996385,9.5,248.6,248.57,7.44454636]
[1732543996584,9.5,248.63,248.57,7.44454636]
[1732543996992,8.46465742,248.59,248.57,7.44454636]
[1732543997991,9.5,248.6,248.57,7.44454636]
[1732543998203,9.5,248.62,248.57,7.44454636]
[1732543998912,9.5,248.6,248.52,47.29378544]
[1732543999101,9.5,248.57,248.55,20.0]
[1732543999411,9.5,248.59,248.56,20.0]
[1732543999620,8.46465742,248.6,248.58,7.44454636]
[1732543999802,9.5,248.61,248.58,7.44454636]
[1732543999803,9.5,248.59,248.58,7.44454636]
[1732544001709,9.5,248.62,248.58,7.44454636]
[1732544001886,9.5,248.62,248.6,7.44454636]
[1732544002089,8.46465742,248.61,248.6,7.44454636]
[1732544002695,8.46465742,248.61,248.58,7.44454636]
[1732544003317,9.5,248.6,248.55,24.0232]
[1732544003487,9.5,248.58,248.55,20.0]
[1732544003802,9.5,248.61,248.56,7.44454636]
[1732544003996,8.46465742,248.61,248.6,7.44454636]
[1732544004324,8.46465742,248.62,248.6,7.44454636]
[1732544005415,9.5,248.61,248.6,7.44454636]
[1732544005618,8.46465742,248.62,248.6,7.44454636]
[1732544005793,9.5,248.61,248.6,7.44454636]
[1732544006194,9.5,248.61,248.59,4.0226]
[1732544006411,9.5,248.61,248.6,7.44454636]
[1732544008288,9.5,248.57,248.52,4.0237]
[1732544008612,2.8156,248.61,248.52,4.0237]
[1732544008613,9.5,248.55,248.52,11.46824636]
[1732544009119,8.46465742,248.56,248.54,7.44454636]
[1732544009422,9.5,248.55,248.54,7.44454636]
[1732544010416,9.5,248.55,248.54,11.46794636]
[1732544011717,8.46465742,248.58,248.54,11.46794636]
[1732544011910,17.96465742,248.61,248.57,7.44454636]
[1732544012210,17.96465742,248.61,248.6,7.44454636]
[1732544014218,0.61202179,248.71,248.6,7.44454636]
[1732544014219,9.5,248.63,248.6,11.46694636]
[1732544014392,9.5,248.63,248.62,7.44454636]
[1732544015333,9.5,248.65,248.62,7.44454636]
[1732544015616,9.5,248.65,248.55,14.0816]
[1732544015617,9.5,248.65,248.63,7.44454636]
[1732544016200,9.5,248.68,248.59,46.3142]
[1732544016404,9.5,248.7,248.67,7.44454636]
[1732544016609,17.96465742,248.7,248.69,7.44454636]
[1732544017214,9.5,248.7,248.69,7.44454636]
[1732544017418,17.96465742,248.7,248.69,7.44454636]
[1732544018696,9.5,248.67,248.64,20.0]
[1732544019002,9.5,248.67,248.64,27.44454636]
[1732544019199,17.96465742,248.69,248.64,31.46634636]
[1732544019502,17.96465742,248.69,248.66,7.44454636]
[1732544019913,9.5,248.67,248.66,7.44454636]
[1732544020095,17.96465742,248.69,248.66,7.44454636]
[1732544020424,9.5,248.67,248.65,11.62321477]
[1732544022510,9.5,248.67,248.65,15.64481477]
[1732544023913,8.46465742,248.65,248.62,11.62321477]
[1732544024230,8.46465742,248.65,248.61,11.62321477]
[1732544025015,8.46465742,248.65,248.61,15.64541477]
[1732544025406,8.46465742,248.65,248.62,11.62321477]
[1732544025819,9.5,248.66,248.64,11.62321477]
[1732544026505,9.5,248.66,248.63,11.62321477]
[1732544026834,9.5,248.64,248.62,11.62321477]
[1732544027128,9.5,248.66,248.62,15.64531477]
[1732544027332,9.5,248.66,248.63,11.62321477]
[1732544027625,17.96465742,248.66,248.64,11.62321477]
[1732544028031,9.5,248.64,248.63,11.62321477]
[1732544028233,17.96465742,248.64,248.62,15.64531477]
[1732544028730,8.46465742,248.64,248.62,15.64531477]
[1732544028928,8.46465742,248.64,248.63,11.62321477]
[1732544029902,17.96465742,248.64,248.62,11.62321477]
[1732544030113,17.96465742,248.64,248.63,11.62321477]
[1732544030616,17.96465742,248.66,248.63,11.62321477]
[1732544030826,17.96465742,248.68,248.65,11.62321477]
[1732544031039,17.96465742,248.68,248.66,11.62321477]
[1732544031639,17.96465742,248.68,248.6,4.0225]
[1732544031640,8.46465742,248.68,248.67,11.62321477]
[1732544032422,17.96465742,248.68,248.66,15.64471477]
[1732544033529,17.96465742,248.68,248.63,11.62321477]
[1732544033530,9.5,248.66,248.63,11.62321477]
[1732544033725,8.46465742,248.64,248.63,11.62321477]
[1732544034844,8.46465742,248.64,248.63,15.64521477]
[1732544035827,9.5,248.64,248.61,15.64541477]
[1732544036143,17.96465742,248.64,248.63,20.0]
[1732544036518,17.96465742,248.64,248.63,11.62321477]
[1732544037528,9.5,248.64,248.63,11.62321477]
[1732544037727,8.46465742,248.67,248.63,27.26822954]
[1732544037954,8.46465742,248.67,248.66,11.62321477]
[1732544038433,9.5,248.69,248.66,11.62321477]
[1732544038434,8.46465742,248.68,248.66,11.62321477]
[1732544039418,9.5,248.69,248.66,15.64461477]
[1732544039614,17.96465742,248.69,248.68,11.62321477]
[1732544040417,17.96465742,248.69,248.68,7.43645966]
[1732544043132,9.5,248.69,248.68,7.43645966]
[1732544043330,17.96465742,248.69,248.68,7.43645966]
[1732544044135,9.5,248.69,248.68,7.43645966]
[1732544044326,17.96465742,248.69,248.68,7.43645966]
[1732544045238,8.46465742,248.68,248.67,4.0213]
[1732544046538,9.5,248.67,248.66,0.09014895]
[1732544048319,33.276884,248.67,248.66,0.09014895]
[1732544048517,31.793784,248.67,248.66,0.09014895]
[1732544049927,8.0169,248.67,248.66,0.09014895]
[1732544054356,8.62892179,248.67,248.66,0.09014895]
[1732544055129,32.40580579,248.67,248.66,0.09014895]
[1732544058056,8.62892179,248.67,248.66,0.09014895]
[1732544060043,8.0169,248.67,248.66,0.09014895]
[1732544060554,16.48155742,248.67,248.66,0.09014895]
[1732544061145,17.09357921,248.67,248.66,0.09014895]
[1732544062548,16.48155742,248.67,248.66,0.09014895]
[1732544062750,17.09357921,248.67,248.66,0.09014895]
[1732544063773,16.48155742,248.67,248.66,0.09014895]
[1732544068362,8.46465742,248.67,248.66,4.11164895]
[1732544068733,16.48155742,248.71,248.66,4.11164895]
[1732544068938,8.46465742,248.69,248.68,7.43645966]
[1732544071661,8.46465742,248.69,248.68,11.45765966]
[1732544071839,7.6903858,248.71,248.68,11.45765966]
[1732544072152,7.6903858,248.71,248.7,7.43645966]
[1732544072462,8.46465742,248.72,248.71,4.0207]
[1732544073162,8.46465742,248.72,248.66,0.09014895]
[1732544073163,7.6903858,248.69,248.68,20.0]
[1732544073858,16.15504322,248.69,248.68,20.0]
[1732544074059,16.15504322,248.69,248.67,20.0]
[1732544074774,8.46465742,248.68,248.67,20.0]
[1732544076653,8.46465742,248.68,248.66,4.11164895]
[1732544077360,8.46465742,248.67,248.66,0.09014895]
[1732544077567,16.15504322,248.67,248.66,0.09014895]
[1732544079260,7.6903858,248.67,248.66,0.09014895]
[1732544079464,16.15504322,248.67,248.66,0.09014895]
[1732544080144,8.46465742,248.67,248.66,7.52660861]
[1732544080348,7.6903858,248.69,248.66,11.54810861]
[1732544080548,8.46465742,248.67,248.66,4.11164895]
[1732544081766,8.46465742,248.67,248.66,11.54810861]
[1732544082983,16.15504322,248.67,248.66,0.09014895]
[1732544086103,18.96994322,248.67,248.66,0.09014895]
[1732544086696,42.74682722,248.67,248.66,0.09014895]
[1732544087078,43.35884901,248.67,248.66,0.09014895]
[1732544089659,42.74682722,248.67,248.66,0.09014895]
[1732544089959,18.96994322,248.67,248.66,0.09014895]
[1732544090460,16.15504322,248.67,248.66,0.09014895]
[1732544091275,18.96994322,248.67,248.66,0.09014895]
[1732544091480,19.58196501,248.67,248.66,0.09014895]
[1732544092281,16.15504322,248.67,248.66,0.09014895]
[1732544094486,16.15504322,248.67,248.53,1.53534258]
[1732544094487,7.6903858,248.46,248.41,7.6617]
[1732544094658,7.6903858,248.43,248.41,7.6617]
[1732544094860,7.6903858,248.37,248.35,7.5581]
[1732544095084,16.15504322,248.37,248.35,7.5581]
[1732544095383,7.6903858,248.39,248.36,11.631688]
[1732544095565,7.6903858,248.37,248.36,11.631688]
[1732544096083,16.15504322,248.37,248.36,11.631688]
[1732544096262,16.15504322,248.37,248.35,7.5581]
[1732544096466,7.6903858,248.37,248.35,7.5581]
[1732544097190,8.46465742,248.36,248.35,7.5581]
[1732544097356,7.6903858,248.37,248.35,7.5581]
[1732544097357,7.5054898,248.37,248.35,7.5581]
[1732544097556,7.5054898,248.34,248.28,7.5934]
[1732544097779,7.5054898,248.34,248.32,11.631688]
[1732544099561,8.46465742,248.36,248.35,20.0]
[1732544099871,8.46465742,248.36,248.35,31.631688]
[1732544100384,7.5054898,248.35,248.31,20.0]
[1732544100585,8.46465742,248.36,248.33,20.0]
[1732544100987,7.5054898,248.35,248.33,20.0]
[1732544101165,8.46465742,248.34,248.33,20.0]
[1732544101365,8.46465742,248.34,248.31,20.0]
[1732544101764,8.46465742,248.34,248.32,20.0]
[1732544102183,7.5054898,248.33,248.32,20.0]
[1732544102488,8.46465742,248.32,248.31,20.0]
[1732544102796,8.46465742,248.3,248.28,7.5934]
[1732544102983,0.61202179,248.42,248.18,2.4945102]
[1732544102984,8.46465742,248.26,248.2,27.7612]
[1732544103285,8.46465742,248.24,248.2,27.7612]
[1732544103487,15.97014722,248.24,248.2,7.8265]
[1732544103683,8.46465742,248.21,248.14,34.416558]